[Event "GER-chW 2019"]
[Site "Magdeburg"]
[Date "2019.05.30"]
[Round "6.5"]
[White "Erofeev, Anastasia"]
[Black "Perez Celis, Alba"]
[Result "1-0"]
[ECO "E68"]
[WhiteElo "2003"]
[BlackElo "1822"]
[Annotator "NA"]
[PlyCount "85"]
[EventDate "2019.05.26"]
[EventType "tourn"]
[EventCountry "GER"]
[SourceTitle "playchess.com"]
[Source "ChessBase"]
[SourceQuality "1"]
[TimeControl "40/5400+30:1800+30"]

{[%evp 8,56,26,39,33,18,32,32767,32767,27,51,42,41,25,51,28,35,-11,0,2,0,0,30,23,59,19,35,-33,32767,32767,32767,32767,27,32767,51,33,32767,32,73,27,35,32767,32,0,0,-8,-10,0,20,32767,8]} 1. d4 {[%emt 0:00:00]} Nf6 {[%emt 0:00:45]} 2. c4 {[%emt 0:00:00]} g6 {[%emt 0:00:16]} 3. g3 {[%emt 0:00:00]} Bg7 {[%emt 0:00:12]} 4. Bg2 {[%emt 0:00:00]} O-O {[%emt 0:00:15]} 5. Nc3 {[%emt 0:00:00]} d6 {[%emt 0:00:26]} 6. Nf3 {[%emt 0:00:06]} Nbd7 {[%emt 0:01:38]} 7. O-O {[%emt 0:01:03]} e5 {[%emt 0:01:27]} 8. e4 {[%emt 0:01:04]} exd4 {[%emt 0:00:30]} 9. Nxd4 {[%emt 0:00:35]} Re8 {[%emt 0:00:29]} 10. h3 {[%emt 0:03:41]} a6 {[%emt 0:00:32]} 11. Re1 {[%emt 0:01:04]} Ne5 {[%emt 0:00:15] E68: King's Indian: Fianchetto: 6...Nbd7 7 0-0 e5 8 e4} (11... Rb8 12. Bf4 Ne5 13. Qb3 Nd3 14. Nc6 bxc6 15. Qxb8 Nxf4 16. gxf4 Nh5 17. e5 d5 18. Ne2 Qh4 19. Qxc7 Bxh3 20. Qxc6 {½-½ (41) Mareco,S (2635)-Adhiban,B (2666) Doha 2016}) 12. Qe2 {[%emt 0:03:59]} c5 {[%emt 0:01:22]} 13. Nc2 {[%emt 0:00:57] [#]} Be6 $146 {[%emt 0:03:57]} ({Predecessor:} 13... Bd7 14. Rd1 Qc7 15. f4 Nc6 16. Be3 Rad8 17. Kh2 Qb8 18. Rab1 {½-½ (88) Zatonskih,A (2489)-Ju,W (2501) Khanty-Mansiysk 2012}) 14. b3 {[%emt 0:06:51]} Nh5 {[%emt 0:06:21]} 15. Bb2 {[%emt 0:17:58]} Rb8 {[%emt 0:04:08]} 16. Ne3 {[%emt 0:06:38]} Nc6 {[%emt 0:08:42]} 17. Nc2 {[%emt 0:09:43]} (17. Rad1 $11) 17... Nd4 {[%emt 0:33:33]} 18. Nxd4 {[%emt 0:03:18]} Bxd4 {[%emt 0:00:08]} 19. Qf3 {[%emt 0:13:47]} Qg5 {[%emt 0:01:42]} 20. Kh2 {[%emt 0:01:01]} Qd2 {[%emt 0:00:55]} (20... b5 $15 21. cxb5 axb5) 21. Re2 {[%emt 0:00:23]} Qg5 {[%emt 0:00:54]} 22. Rae1 {[%emt 0:02:27]} Be5 {[%emt 0:00:28]} 23. Nd1 {[%emt 0:02:41]} b5 {[%emt 0:01:30]} 24. Bxe5 {[%emt 0:03:44]} Qxe5 {[%emt 0:00:18]} 25. Ne3 {[%emt 0:02:06]} bxc4 {[%emt 0:00:52]} 26. Nxc4 {[%emt 0:00:43]} Bxc4 {[%emt 0:00:14]} 27. bxc4 {[%emt 0:00:02]} Rb4 {[%emt 0:01:32]} 28. Qd3 {[%emt 0:01:40]} Reb8 $11 {[%emt 0:01:03]} 29. Rc2 {[%emt 0:02:44]} Rb2 {[%emt 0:07:56]} 30. Ree2 {[%emt 0:02:00]} Rb1 {[%emt 0:01:27]} 31. Qc3 {[%emt 0:07:08]} Qxc3 {[%emt 0:10:48]} 32. Rxc3 {[%emt 0:00:05]} R8b2 {[%emt 0:00:23]} 33. Rcc2 {[%emt 0:00:54]} Rxc2 {[%emt 0:00:52]} 34. Rxc2 {[%emt 0:00:04]} Ng7 {[%emt 0:01:46]} 35. Rd2 {[%emt 0:04:13]} Rb6 {[%emt 0:00:06]} 36. e5 {[%emt 0:00:51]} dxe5 {[%emt 0:00:27]} 37. Rd8+ {[%emt 0:00:09]} Ne8 {[%emt 0:01:15]} 38. Rxe8+ {[%emt 0:00:03]} Kg7 {[%emt 0:00:08]} 39. Rxe5 {[%emt 0:00:18]} Rb2 {[%emt 0:00:15]} 40. a4 {[%emt 0:01:09]} Rxf2 {[%emt 0:00:40]} 41. Rxc5 {[%emt 0:30:23]} Ra2 {[%emt 0:30:44]} 42. Ra5 {[%emt 0:00:07]} Rc2 {[%emt 0:00:16]} 43. c5 {[%emt 0:00:07]} 1-0

[Event "GER-chW 2019"]
[Site "Magdeburg"]
[Date "2019.05.30"]
[Round "6.6"]
[White "Burchardt, Brigitte"]
[Black "Lowke, Kathrin"]
[Result "1-0"]
[ECO "B26"]
[WhiteElo "2094"]
[BlackElo "1887"]
[Annotator "NA"]
[PlyCount "83"]
[EventDate "2019.05.26"]
[EventType "tourn"]
[EventCountry "GER"]
[SourceTitle "playchess.com"]
[Source "ChessBase"]
[SourceQuality "1"]
[TimeControl "40/5400+30:1800+30"]

{[%evp 10,61,0,4,0,5,7,6,6,-2,8,-7,-5,-11,16,19,46,-12,-30,32767,-23,-53,-42,-78,-24,-60,-55,-56,-51,32767,32767,32767,32767,-76,32767,32767,32767,32767,32767,32767,32767,-139,-133,-123,-116,-136,32767,32767,-123,-104,32767,32767,32767,-120]} 1. e4 {[%emt 0:00:00]} c5 {[%emt 0:00:00]} 2. Nc3 {[%emt 0:00:00]} Nc6 {[%emt 0:00:00]} 3. g3 {[%emt 0:00:00]} g6 {[%emt 0:00:00]} 4. Bg2 {[%emt 0:00:00]} Bg7 {[%emt 0:00:00]} 5. d3 {[%emt 0:00:00]} d6 {[%emt 0:00:54]} 6. Be3 {[%emt 0:01:45]} e6 {[%emt 0:00:48]} 7. Qd2 {[%emt 0:01:58]} Rb8 {[%emt 0:02:30]} 8. Nge2 {[%emt 0:00:47]} Nd4 {[%emt 0:02:24]} 9. Nd1 {[%emt 0:01:39]} b5 {[%emt 0:04:08]} 10. c3 {[%emt 0:02:42] B26: Closed Sicilian: 3 g3, lines with early Be3} (10. Nc1 e5 11. c3 Bh3 12. O-O Bxg2 13. Kxg2 Ne6 14. f4 exf4 15. gxf4 f5 16. exf5 gxf5 17. Qe2 Qf6 {0-1 (61) Belouadah,S (2411)-Oussedik,M (2319) El Harrach 2019}) 10... Nxe2 {[%emt 0:01:41]} 11. Qxe2 {[%emt 0:00:06]} Qa5 {[%emt 0:00:12]} 12. O-O {[%emt 0:02:44]} b4 {[%emt 0:00:54]} 13. c4 {[%emt 0:01:49]} Ne7 {[%emt 0:01:46]} 14. f4 $146 {[%emt 0:15:43]} ({Predecessor:} 14. Bf4 e5 15. Bd2 Nc6 16. Ne3 Nd4 {½-½ (16) Suster,O (2131)-Feinig,M (1953) Latschach 2005}) 14... O-O {[%emt 0:02:49]} 15. Kh1 {[%emt 0:03:32]} Bb7 {[%emt 0:06:35]} 16. Qf2 {[%emt 0:03:55]} Nc6 {[%emt 0:16:00]} 17. Qd2 {[%emt 0:05:00]} Nd4 {[%emt 0:03:02]} 18. Nf2 {[%emt 0:00:36]} Qc7 {[%emt 0:02:06]} 19. Rab1 {[%emt 0:03:24]} a5 {[%emt 0:05:07]} 20. b3 {[%emt 0:01:29]} Ra8 {[%emt 0:02:10]} 21. Nh3 {[%emt 0:08:52]} a4 {[%emt 0:01:55]} 22. Ng5 {[%emt 0:05:23]} axb3 {[%emt 0:00:40]} 23. axb3 {[%emt 0:00:05]} Ra3 {[%emt 0:00:26]} 24. Qd1 {[%emt 0:06:23]} Ra2 {[%emt 0:04:45]} 25. Rf2 {[%emt 0:07:09]} Rfa8 {[%emt 0:00:51]} 26. Nf3 {[%emt 0:03:21]} Nxf3 {[%emt 0:07:07]} 27. Qxf3 {[%emt 0:00:54]} Bc3 {[%emt 0:01:31]} 28. g4 {[%emt 0:00:58]} Ra1 {[%emt 0:02:05]} 29. Rff1 {[%emt 0:03:40]} Rxb1 {[%emt 0:02:03]} 30. Rxb1 {[%emt 0:00:04]} Ra2 {[%emt 0:00:24]} 31. f5 $17 {[%emt 0:01:27]} exf5 {[%emt 0:04:40]} 32. gxf5 {[%emt 0:00:11]} Qe7 {[%emt 0:00:32]} 33. Qg4 {[%emt 0:07:36]} Qe5 {[%emt 0:06:04]} 34. Bf4 {[%emt 0:01:05]} Qd4 {[%emt 0:03:23]} 35. Qg3 {[%emt 0:02:13]} Rxg2 {[%emt 0:04:07]} 36. Kxg2 {[%emt 0:03:53]} Bxe4+ {[%emt 0:00:08]} 37. dxe4 {[%emt 0:00:33]} Qxe4+ {[%emt 0:00:08]} 38. Qf3 {[%emt 0:01:17]} Qxb1 {[%emt 0:00:07]} 39. Bxd6 {[%emt 0:01:52]} Qa2+ {[%emt 0:03:29]} 40. Kh3 {[%emt 0:01:12]} Qa7 {[%emt 0:00:53]} 41. Qc6 {[%emt 0:31:50]} Bd4 {[%emt 0:32:04]} 42. f6 1-0

[Event "GER-chW 2019"]
[Site "Magdeburg"]
[Date "2019.05.30"]
[Round "6.7"]
[White "Just, Anita"]
[Black "Kopylov, Luba"]
[Result "1/2-1/2"]
[ECO "B00"]
[WhiteElo "1866"]
[BlackElo "2078"]
[Annotator "NA"]
[PlyCount "114"]
[EventDate "2019.05.26"]
[EventType "tourn"]
[EventCountry "GER"]
[SourceTitle "playchess.com"]
[Source "ChessBase"]
[SourceQuality "1"]
[TimeControl "40/5400+30:1800+30"]

1. e4 {[%emt 0:00:00]} b6 {[%emt 0:00:00]} 2. d4 {[%emt 0:00:24]} Bb7 {[%emt 0:00:03]} 3. Bd3 {[%emt 0:01:22]} Nf6 {[%emt 0:00:11]} 4. Qe2 {[%emt 0:01:52]} e6 {[%emt 0:00:15]} 5. Nf3 {[%emt 0:04:47]} c5 {[%emt 0:12:23]} 6. c3 {[%emt 0:04:37]} cxd4 {[%emt 0:02:02]} 7. cxd4 {[%emt 0:00:15]} Qc8 {[%emt 0:08:45] B00: Queen's Fianchetto Defence, Nimzowitsch Defence} (7... Nc6 8. a3 h6 9. Nc3 g5 10. Be3 Bg7 11. e5 Nd5 12. Nxd5 exd5 13. h4 g4 14. Nd2 h5 15. Bg5 Qb8 16. Qe3 {1-0 (48) Bocharov,D (2533)-Predke,A (2622) Khanty-Mansiysk 2018}) 8. O-O {[%emt 0:06:12]} Ba6 {[%emt 0:00:26]} 9. Nc3 {[%emt 0:05:50]} Bb4 {[%emt 0:07:12]} 10. Bd2 {[%emt 0:04:44]} (10. Nb5 $18) 10... Bxc3 {[%emt 0:01:15]} 11. Bxc3 {[%emt 0:00:31]} ({White should try} 11. bxc3 $16 Bxd3 12. Qxd3) 11... d5 $146 {[%emt 0:01:22]} ({Predecessor:} 11... Bxd3 12. Qxd3 Na6 13. Rac1 Qb7 14. Rfe1 O-O 15. Ng5 {0-1 (50) Mueller,W (1994)-Wunder,H Wildflecken 1993}) 12. e5 {[%emt 0:10:04]} Ne4 {[%emt 0:04:58]} 13. Rfc1 {[%emt 0:14:57]} Bxd3 {[%emt 0:03:56]} 14. Qxd3 {[%emt 0:00:05]} Qa6 {[%emt 0:00:07]} 15. Qd1 {[%emt 0:05:09]} Nc6 {[%emt 0:21:39]} 16. Bd2 {[%emt 0:09:33]} Nxd2 {[%emt 0:04:55]} 17. Qxd2 {[%emt 0:00:07]} Na5 {[%emt 0:00:50]} 18. Qb4 {[%emt 0:10:00]} Nc4 $2 {[%emt 0:10:25]} (18... Qb7 $16) 19. b3 {[%emt 0:03:27]} Qa5 {[%emt 0:00:14]} 20. Qxa5 {[%emt 0:01:54]} Nxa5 {[%emt 0:00:06]} 21. Rc7 {[%emt 0:00:12]} h6 {[%emt 0:00:50]} 22. Rac1 {[%emt 0:00:36]} O-O {[%emt 0:00:15]} 23. Kf1 {[%emt 0:02:46]} Rfb8 {[%emt 0:03:18]} 24. Ke2 {[%emt 0:01:06]} b5 {[%emt 0:03:01]} 25. Kd2 {[%emt 0:03:51]} Rb7 {[%emt 0:02:49]} 26. Ne1 {[%emt 0:02:06]} Rab8 {[%emt 0:01:19]} 27. Rc8+ {[%emt 0:02:18]} Rxc8 {[%emt 0:00:47]} 28. Rxc8+ {[%emt 0:02:23]} Kh7 {[%emt 0:00:06]} 29. Nd3 {[%emt 0:00:51]} Kg6 {[%emt 0:03:36]} 30. Nc5 {[%emt 0:00:57]} Rb6 {[%emt 0:02:46]} 31. Rc7 {[%emt 0:00:27]} a6 {[%emt 0:01:41]} 32. Nd7 {[%emt 0:01:35]} Rb7 {[%emt 0:00:12]} 33. Rxb7 {[%emt 0:01:29]} Nxb7 {[%emt 0:00:05]} 34. Nc5 {[%emt 0:01:29]} Na5 {[%emt 0:00:32]} 35. Nxa6 {[%emt 0:00:27]} Nc6 {[%emt 0:00:05]} 36. Ke3 {[%emt 0:00:24]} b4 {[%emt 0:00:53]} 37. h3 {[%emt 0:00:46]} f6 {[%emt 0:01:15]} 38. f4 {[%emt 0:00:27]} h5 {[%emt 0:01:34]} 39. Nc7 {[%emt 0:00:16]} fxe5 {[%emt 0:01:23]} 40. fxe5 {[%emt 0:00:17]} Kf5 {[%emt 0:00:54]} 41. g4+ $1 {[%emt 0:04:59]} hxg4 {[%emt 0:01:17]} 42. hxg4+ {[%emt 0:00:10]} Kxg4 {[%emt 0:00:09]} 43. Nxe6 {[%emt 0:00:18]} g5 {[%emt 0:00:25]} 44. Nc7 {[%emt 0:02:52]} Ne7 {[%emt 0:00:38]} 45. Na6 {[%emt 0:02:32]} Nf5+ {[%emt 0:05:02]} 46. Kf2 {[%emt 0:16:52]} Nxd4 {[%emt 0:07:16]} 47. Nxb4 {[%emt 0:00:06]} Kf4 {[%emt 0:02:25]} 48. Nxd5+ {[%emt 0:00:16]} Kxe5 {[%emt 0:00:07]} 49. Nc3 {[%emt 0:01:32]} Nc2 {[%emt 0:03:20]} 50. Kg3 {[%emt 0:01:25]} Kd4 {[%emt 0:00:46]} 51. Nb1 {[%emt 0:02:55]} Ne3 {[%emt 0:05:12]} 52. a4 {[%emt 0:00:52]} Kc5 {[%emt 0:00:31]} 53. Kf3 {[%emt 0:00:41]} Nf5 {[%emt 0:01:19]} 54. Nd2 {[%emt 0:00:52]} Kb4 {[%emt 0:02:15]} 55. Kg4 {[%emt 0:00:13]} Nd4 $11 {[%emt 0:00:34]} 56. Kxg5 {[%emt 0:00:50]} Nxb3 {[%emt 0:00:10]} 57. Nxb3 {[%emt 0:00:10]} Kxa4 {[%emt 0:00:05]} 1/2-1/2

[Event "GER-chW 2019"]
[Site "Magdeburg"]
[Date "2019.05.30"]
[Round "6.8"]
[White "Braun, Kristin"]
[Black "Ries, Jutta"]
[Result "1/2-1/2"]
[ECO "A05"]
[WhiteElo "1895"]
[BlackElo "2017"]
[Annotator "NA"]
[PlyCount "117"]
[EventDate "2019.05.26"]
[EventType "tourn"]
[EventCountry "GER"]
[SourceTitle "playchess.com"]
[Source "ChessBase"]
[SourceQuality "1"]
[TimeControl "40/5400+30:1800+30"]

1. Nf3 {[%emt 0:00:00]} Nf6 {[%emt 0:00:00]} 2. d3 {[%emt 0:01:29]} d5 {[%emt 0:00:31]} 3. g3 {[%emt 0:00:36]} Nbd7 {[%emt 0:02:59]} 4. Bg2 {[%emt 0:00:07]} e5 {[%emt 0:01:07]} 5. O-O {[%emt 0:02:23]} Bd6 {[%emt 0:04:45]} 6. Nc3 {[%emt 0:07:13] A07: Réti Opening: New York and Capablanca Systems} (6. Nbd2 O-O 7. e4 c6 8. Re1 Re8 9. a4 a5 10. h3 Bc7 11. b3 Nf8 12. Bb2 Ng6 13. Nf1 h6 14. N3h2 d4 15. Bc1 b5 16. h4 Bd7 17. h5 {0-1 (40) Maghsoodloo,P (2688)-Vallejo Pons,F (2695) St Petersburg 2018}) 6... c6 {[%emt 0:01:37]} 7. e4 {[%emt 0:00:29]} dxe4 {[%emt 0:02:55]} 8. dxe4 {[%emt 0:00:11]} Nf8 $146 {[%emt 0:27:04]} ({Predecessor:} 8... Nc5 9. Nh4 Bg4 10. Bf3 Bh3 11. Re1 Qd7 12. Bg5 O-O-O 13. Bxf6 gxf6 {0-1 (31) Danielsen,H (2494)-Pedersen,N (2453) Ballerup 2010}) 9. Qd3 {[%emt 0:07:35]} Be6 {[%emt 0:16:16]} 10. Rd1 {[%emt 0:02:04]} Bc7 {[%emt 0:00:35]} 11. Qxd8+ {[%emt 0:02:01]} Rxd8 {[%emt 0:00:12]} 12. Rxd8+ {[%emt 0:00:15]} Kxd8 {[%emt 0:00:08]} 13. Ng5 {[%emt 0:01:20]} h6 {[%emt 0:01:37]} 14. Nxe6+ {[%emt 0:00:46]} Nxe6 {[%emt 0:00:03]} 15. Be3 {[%emt 0:01:57]} Bb6 {[%emt 0:02:17]} 16. Bxb6+ {[%emt 0:05:09]} axb6 {[%emt 0:00:05]} 17. Rd1+ {[%emt 0:00:16]} Kc7 {[%emt 0:00:25]} 18. Ne2 {[%emt 0:01:28]} Ra8 {[%emt 0:00:48]} 19. a3 {[%emt 0:00:34]} b5 {[%emt 0:17:30]} 20. c3 {[%emt 0:03:36]} Nc5 {[%emt 0:03:06]} 21. f3 {[%emt 0:02:23]} Na4 {[%emt 0:03:00]} 22. Rd2 {[%emt 0:01:16]} Ne8 {[%emt 0:05:33]} 23. Bh3 {[%emt 0:09:14]} Nd6 {[%emt 0:01:57]} 24. Kf2 {[%emt 0:05:54]} Nc5 {[%emt 0:00:10]} 25. Nc1 $17 {[%emt 0:07:44]} Rd8 {[%emt 0:01:03]} 26. Ke2 {[%emt 0:04:29]} Nc4 {[%emt 0:00:13]} 27. Rxd8 {[%emt 0:03:00]} Kxd8 {[%emt 0:00:01]} 28. b3 {[%emt 0:03:04]} Nxa3 {[%emt 0:05:24]} 29. Kd2 {[%emt 0:02:42]} Ke7 {[%emt 0:01:47]} 30. Bf1 {[%emt 0:00:32]} Kd6 {[%emt 0:01:05]} 31. Be2 {[%emt 0:01:49]} Na6 {[%emt 0:00:39]} 32. Na2 {[%emt 0:01:32]} c5 {[%emt 0:00:27]} 33. Kc1 {[%emt 0:03:08]} Nc7 {[%emt 0:00:30]} 34. Kb2 {[%emt 0:01:42]} b4 {[%emt 0:00:01]} 35. cxb4 {[%emt 0:00:12]} cxb4 {[%emt 0:00:02]} 36. Nxb4 {[%emt 0:00:20]} Nab5 {[%emt 0:00:04]} 37. Nc2 {[%emt 0:03:28]} Na7 {[%emt 0:01:25]} 38. Ne3 {[%emt 0:00:26]} Ne8 {[%emt 0:00:53]} 39. Bc4 {[%emt 0:01:25]} Ke7 {[%emt 0:00:32]} 40. Nd5+ {[%emt 0:02:36]} Kf8 {[%emt 0:00:25]} 41. Nb6 {[%emt 0:33:34]} Ke7 {[%emt 0:05:30]} 42. Bd5 {[%emt 0:00:00]} Nc6 {[%emt 0:16:01]} 43. Nc8+ {[%emt 0:00:00]} Kd8 {[%emt 0:08:46]} 44. Bxf7 {[%emt 0:00:00]} Nf6 {[%emt 0:00:58]} 45. Nb6 {[%emt 0:00:00]} Nd4 {[%emt 0:00:05]} 46. Nd5 {[%emt 0:00:00]} Nxf3 {[%emt 0:00:38]} 47. Nxf6 {[%emt 0:00:00]} gxf6 {[%emt 0:00:02]} 48. Bh5 {[%emt 0:00:00]} Nxh2 {[%emt 0:01:55]} 49. Be2 {[%emt 0:00:00]} h5 {[%emt 0:00:07]} 50. Bxh5 {[%emt 0:00:00]} Nf1 {[%emt 0:00:01]} 51. g4 {[%emt 0:00:00]} Kc7 {[%emt 0:00:25]} 52. Kc3 {[%emt 0:00:00]} Ne3 {[%emt 0:01:28]} 53. b4 {[%emt 0:00:00]} Kb6 {[%emt 0:00:24]} 54. Kb3 {[%emt 0:00:00]} Ng2 {[%emt 0:00:51]} 55. Bg6 {[%emt 0:00:17]} Nf4 {[%emt 0:00:12]} 56. Bf5 {[%emt 0:00:20]} Ne2 {[%emt 0:00:50]} 57. Kc4 {[%emt 0:01:19]} Kc6 {[%emt 0:00:26]} 58. b5+ {[%emt 0:02:52]} Kd6 {[%emt 0:00:01]} 59. Bg6 1/2-1/2

[Event "GER-chW 2019"]
[Site "Magdeburg"]
[Date "2019.05.30"]
[Round "6.9"]
[White "Ley, Sabrina"]
[Black "Zimmer, Elke"]
[Result "0-1"]
[ECO "B01"]
[WhiteElo "1870"]
[BlackElo "1926"]
[Annotator "NA"]
[PlyCount "128"]
[EventDate "2019.05.26"]
[EventType "tourn"]
[EventCountry "GER"]
[SourceTitle "playchess.com"]
[Source "ChessBase"]
[SourceQuality "1"]
[TimeControl "40/5400+30:1800+30"]

1. e4 {[%emt 0:00:00]} d5 {[%emt 0:00:00]} 2. exd5 {[%emt 0:00:00]} Qxd5 {[%emt 0:00:00]} 3. Nc3 {[%emt 0:00:00]} Qa5 {[%emt 0:00:03]} 4. d4 {[%emt 0:00:00]} c6 {[%emt 0:00:09]} 5. Bc4 {[%emt 0:00:30]} Nf6 {[%emt 0:00:32]} 6. Nge2 {[%emt 0:05:19]} Bg4 {[%emt 0:00:30]} 7. h3 {[%emt 0:05:17] B01: Scandinavian Defence} ({White should play} 7. Bd2 $16) (7. f3 Bd7 8. Bd2 Qd8 9. Bg5 h6 10. Bh4 Bf5 11. O-O g5 12. Bf2 e6 13. Ng3 Bg6 14. Bd3 Bxd3 15. Qxd3 {1-0 (27) Sevian,S (2531)-Kritz,L (2583) Richardson 2015}) 7... Bh5 {[%emt 0:00:14]} 8. O-O {[%emt 0:04:56]} e6 {[%emt 0:00:27]} 9. Bf4 {[%emt 0:02:35]} Nbd7 {[%emt 0:00:37]} 10. a3 {[%emt 0:02:40]} Be7 $146 {[%emt 0:01:10]} ({Predecessor:} 10... g5 11. Bh2 b5 12. b4 Qb6 13. Bb3 Be7 {0-1 (53) Gasik,A (2148)-Michalska,M (2076) Chojnice 2005}) 11. Qd2 {[%emt 0:03:27]} O-O {[%emt 0:01:26]} 12. b4 {[%emt 0:05:54]} (12. Nd5 $14 Qd8 13. Bc7 (13. Nxe7+ Qxe7 14. f3 Bg6 $14)) 12... Qd8 {[%emt 0:03:10]} 13. Bb3 {[%emt 0:02:18]} a6 {[%emt 0:02:43]} 14. Bh2 {[%emt 0:05:30]} Nd5 {[%emt 0:04:37]} 15. Ne4 {[%emt 0:07:35]} N7f6 {[%emt 0:06:12]} 16. N4g3 {[%emt 0:06:58]} Bd6 {[%emt 0:05:35]} 17. c4 {[%emt 0:06:36]} Bxe2 {[%emt 0:02:15]} 18. Qxe2 {[%emt 0:02:20]} Nf4 {[%emt 0:01:11]} 19. Qf3 {[%emt 0:02:55]} Ng6 {[%emt 0:00:34]} 20. Rfd1 {[%emt 0:04:08]} Qc7 {[%emt 0:04:14]} 21. Rac1 {[%emt 0:04:46]} Nh4 {[%emt 0:00:51]} 22. Qe2 {[%emt 0:04:01]} Nf5 {[%emt 0:04:21]} 23. Nf1 {[%emt 0:01:23]} Bxh2+ {[%emt 0:04:34]} 24. Nxh2 {[%emt 0:00:07]} Qf4 {[%emt 0:02:18]} 25. Qf3 {[%emt 0:05:50]} Nxd4 {[%emt 0:00:45]} 26. Qxf4 {[%emt 0:01:56]} Ne2+ {[%emt 0:00:06]} 27. Kf1 {[%emt 0:00:24]} Nxf4 {[%emt 0:00:05]} 28. Rd4 {[%emt 0:03:30]} Ng6 {[%emt 0:05:34]} 29. Rcd1 {[%emt 0:01:29]} Rfe8 $15 {[%emt 0:00:52]} 30. Rd6 {[%emt 0:06:44]} Kf8 {[%emt 0:00:22]} 31. Nf3 {[%emt 0:04:40]} Ke7 {[%emt 0:00:59]} 32. R6d4 {[%emt 0:01:14]} Red8 {[%emt 0:01:20]} 33. Rxd8 {[%emt 0:00:11]} Rxd8 {[%emt 0:00:05]} 34. Rb1 {[%emt 0:00:09]} Nf4 {[%emt 0:00:38]} 35. h4 {[%emt 0:00:27]} h6 {[%emt 0:00:43]} 36. g3 {[%emt 0:00:09]} Ng6 {[%emt 0:01:34]} 37. Bc2 {[%emt 0:00:20]} Nf8 {[%emt 0:00:18]} 38. Ne5 {[%emt 0:00:39]} N8d7 {[%emt 0:00:17]} 39. Nd3 {[%emt 0:00:18]} Nb6 {[%emt 0:00:22]} 40. c5 {[%emt 0:01:16]} Nc4 {[%emt 0:00:11]} 41. Ra1 {[%emt 0:31:11]} Ng4 {[%emt 0:32:12]} 42. Ke2 {[%emt 0:00:00]} Nge5 {[%emt 0:00:00]} 43. Ra2 {[%emt 0:00:00]} Nxd3 {[%emt 0:00:00]} 44. Bxd3 {[%emt 0:00:00]} Ne5 {[%emt 0:00:00]} 45. Bc2 {[%emt 0:00:00]} g5 {[%emt 0:00:00]} 46. hxg5 {[%emt 0:00:00]} hxg5 {[%emt 0:00:00]} 47. Ra1 {[%emt 0:00:00]} Rh8 {[%emt 0:00:00]} 48. Be4 {[%emt 0:00:00]} f5 {[%emt 0:00:00]} 49. Bg2 {[%emt 0:00:00]} Rh2 {[%emt 0:00:00]} 50. Kf1 {[%emt 0:00:00]} Rh8 {[%emt 0:00:00]} 51. Ke2 {[%emt 0:00:00]} g4 {[%emt 0:00:00]} 52. Rc1 {[%emt 0:00:00]} Rh2 {[%emt 0:00:00]} 53. Rg1 {[%emt 0:01:54]} Nc4 {[%emt 0:00:00]} 54. a4 {[%emt 0:00:17]} Ne5 {[%emt 0:00:00]} 55. Ke3 {[%emt 0:01:55]} Rxg2 {[%emt 0:00:00]} 56. Rxg2 {[%emt 0:00:09]} Nf3 {[%emt 0:00:00]} 57. Ke2 {[%emt 0:01:25]} e5 {[%emt 0:00:00]} 58. Ke3 {[%emt 0:00:21]} Ke6 {[%emt 0:00:00]} 59. Ke2 {[%emt 0:00:24]} Kd5 {[%emt 0:00:00]} 60. Kd1 {[%emt 0:01:02]} Kc4 {[%emt 0:00:00]} 61. b5 {[%emt 0:00:22]} Kxc5 {[%emt 0:00:00]} 62. bxc6 {[%emt 0:00:15]} bxc6 {[%emt 0:00:00]} 63. Kc1 {[%emt 0:01:13]} a5 {[%emt 0:00:00]} 64. Kb2 {[%emt 0:00:24]} Kb4 {[%emt 0:00:00]} 0-1

[Event "GER-chW 2019"]
[Site "Magdeburg"]
[Date "2019.05.30"]
[Round "6.10"]
[White "Freter, Anke"]
[Black "Bashylina, Luisa"]
[Result "0-1"]
[ECO "B28"]
[WhiteElo "1873"]
[BlackElo "1812"]
[Annotator "NA"]
[PlyCount "54"]
[EventDate "2019.05.26"]
[EventType "tourn"]
[EventCountry "GER"]
[SourceTitle "playchess.com"]
[Source "ChessBase"]
[SourceQuality "1"]
[TimeControl "40/5400+30:1800+30"]

{[%evp 8,41,18,8,-4,-55,32767,32767,-6,-66,-83,-85,-77,-122,-100,-114,32767,-134,32767,-131,-125,-137,-143,-160,-147,-164,-159,-171,-166,-274,-229,-201,-235,-326,-245,-216]} 1. e4 {[%emt 0:00:00]} c5 {[%emt 0:00:00]} 2. Nf3 {[%emt 0:00:00]} a6 {[%emt 0:00:00]} 3. d4 {[%emt 0:00:34]} cxd4 {[%emt 0:00:00]} 4. Nxd4 {[%emt 0:00:06]} Nf6 {[%emt 0:00:00]} 5. Nc3 {[%emt 0:00:58]} e5 {[%emt 0:00:13]} 6. Nf5 {[%emt 0:01:40]} d5 {[%emt 0:01:09]} 7. Ng3 {[%emt 0:01:27] [#]} Bb4 {[%emt 0:02:40] B28: Sicilian: 2 Nf3 a6 (O'Kelly Variation)} ({Black should play} 7... d4 $1 $17 {[%cal Rd4c3]} 8. Nb1 Be6) 8. Bd2 {[%emt 0:02:07]} (8. exd5 $11 Nxd5 9. Bd2 Bxc3 10. bxc3) 8... d4 {[%emt 0:02:58]} 9. Nb1 {[%emt 0:01:05]} Qb6 {[%emt 0:01:54]} 10. Bxb4 $146 {[%emt 0:11:58]} ({Predecessor:} 10. Bd3 Bxd2+ 11. Nxd2 Qxb2 12. Rb1 Qc3 13. O-O Qc7 14. f4 Nc6 15. Nh5 Nxh5 16. Qxh5 exf4 {0-1 (32) Ljubic,J (2221)-Schweda,R (2416) Austria 2006}) 10... Qxb4+ {[%emt 0:00:22] Double Attack} 11. Nd2 {[%emt 0:00:42]} Qxb2 {[%emt 0:04:41]} 12. Bc4 {[%emt 0:00:47]} b5 {[%emt 0:04:24]} 13. Bb3 {[%emt 0:00:49]} Qc3 {[%emt 0:01:20]} 14. O-O {[%emt 0:01:42]} O-O {[%emt 0:01:29]} 15. Ne2 {[%emt 0:05:34]} Qc6 {[%emt 0:03:29]} 16. f3 {[%emt 0:01:01]} Be6 {[%emt 0:01:21]} 17. Bxe6 {[%emt 0:04:57]} Qxe6 {[%emt 0:00:38]} 18. f4 {[%emt 0:01:52]} (18. c3 $17) 18... Ng4 {[%emt 0:06:32]} 19. Rf3 {[%emt 0:02:37]} Ne3 {[%emt 0:00:30]} 20. Qb1 {[%emt 0:00:44] [#]} Qg4 $19 {[%emt 0:01:49]} 21. Rf2 {[%emt 0:00:06]} Qh5 {[%emt 0:17:50]} 22. fxe5 {[%emt 0:08:25]} Ng4 {[%emt 0:00:37]} 23. Rf4 {[%emt 0:02:12]} Qxh2+ {[%emt 0:00:15]} 24. Kf1 {[%emt 0:00:04]} Ne3+ {[%emt 0:00:43]} 25. Kf2 {[%emt 0:00:28]} Qxg2+ {[%emt 0:00:11]} 26. Ke1 {[%emt 0:00:05]} Qh1+ {[%emt 0:00:43]} 27. Kf2 {[%emt 0:00:38]} Qh2+ {[%emt 0:00:17]} 0-1